Cogmind - Beta 13 @@@ ROGUE MODE // 2024.04.02 @ 11:56:10 Player: Devilhunter10 Result: Destroyed by D-53 Grenadier with Mini Grenade Launcher Performance ------------- Evolutions (0) 0 Regions Visited (4) 800 Robots Destroyed (19) 95 Value Destroyed (419) 419 Prototype IDs (1) 20 Alien Tech Used (0) 0 Bonus (300) 300 TOTAL SCORE: 1634 Bonus ------- Aligned with FarCom 300 Cogmind --------- Core Integrity 0/250 Matter 282/300 Energy 123/125 System Corruption 0% Temperature Cool (0) Movement Rolling (130) Ox2 Location -9/Mines Parts ------- > --- POWER (1) -------- Light Ion Engine > --- PROPULSION (2) --- Compact Wheel > --- UTILITY (2) ------ High-capacity Storage Unit Skeleton Box > --- WEAPON (2) ------- (None) > --- INVENTORY (20) --- Light Ion Engine Light Ion Engine Light Ion Engine Wheel Heat Sink High-capacity Matter Pod (175) High-capacity Matter Pod (0) Compact Matter Pod (0) Terrain Scan Processor Improved Targeting Computer Improved Targeting Computer Improved Targeting Computer ECM Suite Core Shielding Hacking Suite Peak State ------------ > --- POWER ------------ Light Ion Engine > --- PROPULSION ------- Wheel Compact Wheel > --- UTILITY ---------- High-capacity Storage Unit Skeleton Box > --- WEAPON ----------- Autogun > --- INVENTORY -------- Light Ion Engine Light Ion Engine Light Ion Engine Wheel Heat Sink High-capacity Matter Pod High-capacity Matter Pod Compact Matter Pod Terrain Scan Processor Improved Targeting Computer Improved Targeting Computer Improved Targeting Computer ECM Suite Core Shielding Hacking Suite [Rating: 14] Favorites ----------- Power Light Ion Engine Engine Light Ion Engine Propulsion Compact Wheel Treads Light Treads Wheel Compact Wheel Utility High-capacity Storage Unit Device Skeleton Box Storage High-capacity Storage Unit Processor Improved Targeting Computer Protection Light Armor Plating Weapon Autogun Energy Gun EM Pulse Gun Ballistic Gun Autogun Build | -11 -10 -10 -10 -9 ------- Run | Yrd Mat Min Exi Min Slots Evolved . | . . . . . Power . | . . . . . Propulsion . | . . . . . Utility . | . . . . . Weapon . | . . . . . Parts Attached 24 | 6 14 2 . 2 Power 4 | 1 2 1 . . Engine 4 | 1 2 1 . . Core . | . . . . . Reactor . | . . . . . Propulsion 7 | 2 4 . . 1 Treads 2 | 2 . . . . Leg . | . . . . . Wheel 5 | . 4 . . 1 Hover . | . . . . . Flight . | . . . . . Utility 6 | 1 3 1 . 1 Device 1 | . . . . 1 Storage 2 | 1 1 . . . Processor 1 | . . 1 . . Hackware . | . . . . . Protection 2 | . 2 . . . Artifact . | . . . . . Weapon 7 | 2 5 . . . Energy Gun 2 | 2 . . . . Energy Cannon . | . . . . . Ballistic Gun 5 | . 5 . . . Ballistic Cannon . | . . . . . Launcher . | . . . . . Special Weapon . | . . . . . Impact Weapon . | . . . . . Slashing Weapon . | . . . . . Piercing Weapon . | . . . . . Special Melee Weapon . | . . . . . Unidentified Prototypes 1 | . . . . 1 Parts Lost 11 | . 6 1 . 4 Power 1 | . 1 . . . Propulsion 4 | . 2 . . 2 Utility 2 | . 1 1 . . Weapon 4 | . 2 . . 2 Highest Loss Streak 4 | . 3 1 . 4 To Critical Strikes . | . . . . . Average Slot Usage (%) 97 | . 96 99 100 94 Engine 13 | . 13 14 14 14 Wheel 26 | . 25 28 28 25 Storage 14 | . 14 14 14 14 Processor 4 | . . 4 14 11 Protection 8 | . 13 8 . . Energy Gun 1 | . 2 . . . Ballistic Gun 26 | . 25 28 28 25 Naked Turns . | . . . . . Heaviest Build 54 | 12 54 54 49 49 Greatest Support 40 | 40 40 32 32 32 Greatest Overweight (x) 3 | . 3 1 1 2 Average Overweight (x) . | . 1 1 1 1 Largest Inventory Capacity 20 | 8 20 20 20 20 Average Capacity 18 | 7 18 20 20 20 Most Carried 18 | 4 18 16 17 17 Average Carried 14 | 2 14 15 16 16 Final Capacity 20 | 8 20 20 20 20 Final Carried 17 | 4 15 16 17 15 Class Distribution -------------------- 100% | Mutant Dominant Class ---------------- Mutant | -10/Materials Mutant | -10/Mines Mutant | -10/Exiles Mutant | -9/Mines Resources | -11 -10 -10 -10 -9 ----------- Run | Yrd Mat Min Exi Min Matter Collected 938 | 243 430 265 . . Remotely . | . . . . . Salvage Created 532 | . 430 102 . . Parts 36 | . 28 8 . . Haulers Intercepted . | . . . . . Recyclers Shooed . | . . . . . Parts Field Recycled . | . . . . . Retrieved Matter . | . . . . . Parts Self-Destructed . | . . . . . Prevented . | . . . . . Kills | -11 -10 -10 -10 -9 ------- Run | Yrd Mat Min Exi Min Combat Hostiles Destroyed 17 | . 11 6 . . Guns 17 | . 11 6 . . Classes Destroyed 4 | . 4 . . . Builder 1 | . 1 . . . Operator 1 | . 1 . . . Swarmer 9 | . 3 6 . . Grunt 8 | . 8 . . . Best Kill Streak 8 | . 8 3 . . Combat Bots Only 7 | . 7 3 . . Max Kills in Single Turn 2 | . 2 1 . . Gunslinging 1 | . 1 . . . Exploded . | . . . . . Melee . | . . . . . Uniques/NPCs Destroyed . | . . . . . Combat | -11 -10 -10 -10 -9 -------- Run | Yrd Mat Min Exi Min Hostile Shots Fired 119 | . 73 31 . 15 Missed 17 | . 13 3 . 1 Damage Taken 1284 | . 650 225 . 409 Core 267 | . 80 50 . 137 Absorbed by Shields . | . . . . . Core Remaining (%) 100 | 100 . . . . Volleys Fired 54 | . 31 21 . 2 Largest 2 | . 2 2 . 1 Hottest 80 | . 80 46 . 23 Shots Fired 103 | . 59 42 . 2 Gun 103 | . 59 42 . 2 Cannon . | . . . . . Launcher . | . . . . . Special . | . . . . . Kinetic 99 | . 55 42 . 2 Thermal . | . . . . . Explosive . | . . . . . Electromagnetic 4 | . 4 . . . Robot Hit Streak 6 | . 6 3 . 1 Robot Miss Streak 4 | . 3 4 . 1 Penetration Max . | . . . . . Secondary Targets 4 | . 3 1 . . Max Gunslinging Chain 1 | . 1 1 . . Shots Hit Robots 53 | . 35 17 . 1 Core Hits 23 | . 16 6 . 1 Critical Kills . | . . . . . Critical Parts Destroyed . | . . . . . Critical Strikes . | . . . . . Melee Attacks . | . . . . . Impact . | . . . . . Slashing . | . . . . . Piercing . | . . . . . Sneak Attacks . | . . . . . Combat Hostiles . | . . . . . Follow-up Attacks . | . . . . . Damage Inflicted 855 | . 567 259 . 29 Guns 855 | . 567 259 . 29 Cannons . | . . . . . Explosions . | . . . . . Melee . | . . . . . Ramming . | . . . . . Kinetic 840 | . 552 259 . 29 Thermal . | . . . . . Explosive . | . . . . . Electromagnetic 15 | . 15 . . . Impact . | . . . . . Slashing . | . . . . . Piercing . | . . . . . Highest Corruption . | . . . . . Average Corruption . | . . . . . Corruption Purged . | . . . . . Corruption Blocked . | . . . . . Overload Shots . | . . . . . Overflow Damage . | . . . . . Projectiles . | . . . . . Explosions . | . . . . . Melee . | . . . . . Knockbacks . | . . . . . Impact . | . . . . . Kinetic . | . . . . . Secondary . | . . . . . Self-Inflicted Damage . | . . . . . Shots . | . . . . . Rammed . | . . . . . Targets Rammed . | . . . . . Kicked . | . . . . . Crushed . | . . . . . Highest Temperature 127 | . 127 35 . 3 Average Temperature 38 | . 53 14 . 3 Received Heat Transfer 257 | . 237 . . 20 Siege Activations . | . . . . . Robots Corrupted . | . . . . . Combat Hostiles . | . . . . . Parts Fried . | . . . . . Impact Corruptions . | . . . . . Robots Melted . | . . . . . Combat Hostiles . | . . . . . Parts Melted . | . . . . . Heat Transferred . | . . . . . Parts Sabotaged . | . . . . . Parts Stolen . | . . . . . Parts Stripped . | . . . . . Power Chain Reactions . | . . . . . Alert | -11 -10 -10 -10 -9 ------- Run | Yrd Mat Min Exi Min Peak Influence 250 | . 250 136 . 15 Initial . | . . . . . Average 69 | . 84 62 . 3 Maximum Alert Level 1 | . 1 . . . Low Security (%) 94 | 100 91 100 . 100 Level 1 5 | . 8 . . . Level 2 . | . . . . . Level 3 . | . . . . . Level 4 . | . . . . . Level 5 . | . . . . . High Security . | . . . . . Max Security . | . . . . . Squads Dispatched 2 | . 2 . . . Investigation 2 | . 2 . . . Extermination . | . . . . . Reinforcement . | . . . . . Assault . | . . . . . Garrison . | . . . . . Intercept . | . . . . . Searches Triggered . | . . . . . Construction Impeded . | . . . . . Haulers Reinforced . | . . . . . Active Scanning Responses . | . . . . . Cargo Convoy Interrupts . | . . . . . Stealth | -11 -10 -10 -10 -9 --------- Run | Yrd Mat Min Exi Min Distress Signals 2 | . 2 . . . Communications Jammed . | . . . . . Distress Signals . | . . . . . Times Spotted 44 | . 19 6 . 19 Peak Tracking Total 17 | . 6 3 . 17 Tactical Retreats . | . . . . . Traps | -11 -10 -10 -10 -9 ------- Run | Yrd Mat Min Exi Min Traps Triggered 3 | . 3 . . . Indirectly . | . . . . . Trap Hack Attempts . | . . . . . Triggered . | . . . . . Disarmed . | . . . . . Reprogrammed . | . . . . . Reused . | . . . . . Traps Extracted . | . . . . . Installed . | . . . . . Triggered . | . . . . . Machines | -11 -10 -10 -10 -9 ---------- Run | Yrd Mat Min Exi Min Machines Disabled 1 | . 1 . . . Max in Single Turn 1 | . 1 . . . Machines Repaired . | . . . . . Machines Dismantled . | . . . . . Machines Sabotaged . | . . . . . Overloaded Fab Kills . | . . . . . Hacking | -11 -10 -10 -10 -9 --------- Run | Yrd Mat Min Exi Min Machines Accessed 8 | . 5 1 2 . Terminals 6 | . 5 1 . . Fabricators . | . . . . . Repair Stations . | . . . . . Recycling Units . | . . . . . Scanalyzers . | . . . . . Garrison Access . | . . . . . Total Hacks 29 | . 10 3 16 . Successful 23 | . 5 2 16 . Failed 6 | . 5 1 . . Catastrophic 2 | . 2 . . . Database Lockouts . | . . . . . Manual 8 | . 5 2 1 . Terminals 13 | . 10 3 . . Fabricators . | . . . . . Repair Stations . | . . . . . Recycling Units . | . . . . . Scanalyzers . | . . . . . Garrison Access . | . . . . . Terminal Hacks 23 | . 5 2 16 . Record 16 | . . . 16 . Level Access Points 1 | . 1 . . . Emergency Access Points 1 | . 1 . . . Alert Level 1 | . . 1 . . Locate Traps 1 | . 1 . . . Dispatch Records 1 | . 1 . . . Zone Layout 2 | . 1 1 . . Fabricator Hacks . | . . . . . Repair Station Hacks . | . . . . . Recycling Unit Hacks . | . . . . . Scanalyzer . | . . . . . Garrison Access Hacks . | . . . . . Unauthorized Hacks . | . . . . . Terminals . | . . . . . Fabricators . | . . . . . Repair Stations . | . . . . . Recycling Units . | . . . . . Scanalyzers . | . . . . . Garrison Access . | . . . . . Data Cores Recovered 1 | . 1 . . . Used . | . . . . . Hacking Detections 4 | . 3 1 . . Full Trace Events 3 | . 3 . . . Feedback Events . | . . . . . Feedback Blocked . | . . . . . Robot Schematics Acquired . | . . . . . Robots Built . | . . . . . Authchips . | . . . . . Time . | . . . . . Total Robot Build Rating . | . . . . . Part Schematics Acquired . | . . . . . Parts Built . | . . . . . Authchips . | . . . . . Time . | . . . . . Total Part Build Rating . | . . . . . Parts Repaired . | . . . . . Time . | . . . . . Parts Recycled . | . . . . . Recycled Matter . | . . . . . Retrieved Matter . | . . . . . Retrieved Components . | . . . . . Parts Scanalyzed . | . . . . . Part Schematics Acquired . | . . . . . Parts Damaged . | . . . . . Bothacking | -11 -10 -10 -10 -9 ------------ Run | Yrd Mat Min Exi Min Used RIF Installer . | . . . . . Robots Hacked . | . . . . . Non-combat . | . . . . . Combat . | . . . . . Robot Hacks Applied . | . . . . . Relay Couplers Released . | . . . . . Fabnet Peak Effective % . | . . . . . Robots Rewired . | . . . . . Allies Hacked . | . . . . . Hacks Repelled . | . . . . . Allies | -11 -10 -10 -10 -9 -------- Run | Yrd Mat Min Exi Min Total Allies . | . . . . . Largest Group . | . . . . . Highest-Rated Group . | . . . . . Highest-Rated Ally . | . . . . . Total Orders . | . . . . . Ally Attacks . | . . . . . Total Damage . | . . . . . Kills . | . . . . . Allies Corrupted . | . . . . . Allies Melted . | . . . . . Intel | -11 -10 -10 -10 -9 ------- Run | Yrd Mat Min Exi Min Robot Analysis Total . | . . . . . Derelict Logs Recovered . | . . . . . Drone Launches . | . . . . . Drone Recoveries . | . . . . . Exploration | -11 -10 -10 -10 -9 ------------- Run | Yrd Mat Min Exi Min Turns Passed 1749 | 112 870 342 384 41 Spaces Moved 1245 | 67 586 229 334 29 Core 12 | 12 . . . . Treads 74 | 55 19 . . . Legs . | . . . . . Wheels 1159 | . 567 229 334 29 Hover . | . . . . . Flight . | . . . . . Fastest Speed 50 | 50 100 115 115 115 Average Speed 117 | 140 117 115 115 116 Slowest Speed 160 | 160 160 115 115 130 Overloaded Moves . | . . . . . Propulsion Burnouts . | . . . . . Robots Hopped . | . . . . . Cave-ins Triggered . | . . . . . Exploration Rate (%) 38 | 5 71 42 64 8 Regions Visited 4 Branch Regions 3 Pre-discovered Areas . | . . . . . Known Exits Taken . | . . . . . Unknown Exits Taken 4 | 1 1 1 1 . Scrap Searched 1 | . . 1 . . Spaces Dug . | . . . . . Terrain Destroyed . | . . . . . Melee . | . . . . . Projectile . | . . . . . AOE . | . . . . . Terrain Rammed . | . . . . . Walls Destroyed . | . . . . . Machines Disabled . | . . . . . Actions | -11 -10 -10 -10 -9 --------- Run | Yrd Mat Min Exi Min Total 1450 | 85 722 274 334 35 Wait 86 | 3 62 19 . 2 Move 1241 | 66 585 228 333 29 Hop . | . . . . . Pick Up 38 | 10 24 3 1 . Fast Attach 1 | . 1 . . . Attach 18 | 6 10 1 . 1 Detach . | . . . . . Swap 5 | . 3 1 . 1 Drop 7 | . 6 1 . . Fire 54 | . 31 21 . 2 Melee . | . . . . . Ram . | . . . . . Kick . | . . . . . Crush . | . . . . . Escape Stasis . | . . . . . Rewire . | . . . . . Trap . | . . . . . Miscellaneous . | . . . . . Route ------- -11/Scrapyard -10/Materials (discovered 4 exits: *Mat x3 / *Min) -10/Mines (discovered 2 exits: *Mat / *Exi) -10/Exiles -9/Mines History --------- Turn | Location | Event 28 | -11/Scrapyard | Discovered new exit (range 16) 113 | -11/Scrapyard | Entered Materials 309 | -10/Materials | Build established: Mutant 378 | -10/Materials | Destroyed 7 combat bots 379 | -10/Materials | Lost 3 parts (1p1n1u) 651 | -10/Materials | Discovered new exit (range 13) 749 | -10/Materials | Discovered new exit (range 9) 866 | -10/Materials | Identified exit to Materials 983 | -10/Materials | Entered Mines 1172 | -10/Mines | Discovered exit to Materials (range 6) 1208 | -10/Mines | Core integrity fell below 50% 1317 | -10/Mines | Deemed a non-threat by the Exiles lab entrance 1318 | -10/Mines | Discovered new exit (range 5) 1325 | -10/Mines | Entered Exiles 1366 | -10/Exiles | Met 8R-AWN 1392 | -10/Exiles | Met EX-HEX 1439 | -10/Exiles | Met EX-BIN 1461 | -10/Exiles | Aligned with FarCom system 1462 | -10/Exiles | Given EX-Vault access code 1497 | -10/Exiles | Opened EX-Vault 1544 | -10/Exiles | Exiles lab attacked by MAIN.C 1566 | -10/Exiles | Found Prototype Device 1688 | -10/Exiles | Discovered new exit (range 14) 1709 | -10/Exiles | Left Exiles lab with Skeleton Box 1709 | -10/Exiles | Entered Mines 1728 | -9/Mines | Assembled infested the area 1745 | -9/Mines | Core integrity fell below 20% 1746 | -9/Mines | Identified Skeleton Box 1750 | -9/Mines | Destroyed by D-53 Grenadier with Mini Grenade Launcher Last Messages --------------- as-93304 destroyed. as-67837 destroyed. as-49888 destroyed. as-52061 destroyed. as-74480 destroyed. as-90094 destroyed. as-32890 destroyed. as-78178 destroyed. as-78296 destroyed. K-01 Serf destroyed. as-35912 destroyed. Discarded Imp. Targeting Computer. Identified Skeleton Box. K-01 Serf collects debris. The unstable cave ceiling collapses. Knocked back. Wheel destroyed. as-65175 destroyed. The unstable cave ceiling collapses. Autogun destroyed. Map ----- +----------------------------------------------------+ | ?????????????????????????????????????????? | | ?????????????????????????????????????????? | | ?????????????????????????????????????????? | | ?????????????????????????????????????????? | | ?????????????????????????????????????????? | | ?????????????????????????????????????????? | | ?????????????????????????????????????????? | | ?????????????????????????????????????????? | | ?????????????????????????????????????????? | | ?????????g????###????????????????????????? | | ?????????????? ????????????????????????? | | ?????????????? #????????????????????????? | | ?????????????# #????????????????????????? | | ???????????### ?????????????????????????? | | ??????#????# ??##?????????????????????? | | ??????? #### ## ######????????????????? | | ???????? =k% # ##???????????????? | | ?????????# d ##??????????????? | | ?????????# d % ##?????????????? | | ?????????## =% % ##????????????? | | ?????????# * % #????????????? | | ??????# ## #??????????? | | ??????# " # ## #?????????? | | ??????#### "" #??### ????????? | | ?????????## #?????? ???????? | | ??????????### @ #??????? ##???????? | | ????????????# #????????##????????? | | ????????????# #??????????????????? | | ????????????## ##??????????????????? | | ?????????????### ####???????????????????? | | ???????????????###???????????????????????? | | ?????????????????????????????????????????? | | ?????????????????????????????????????????? | | | | | | | | | | | | | | | | | | | | | | | | | | | | | | | | | | | +----------------------------------------------------+ Best States ------------- Heat Dissipation 25 Energy Generation 10 Energy Capacity 250 Matter Stores 300 Matter Capacity 300 Sight Range 16 Terrain Scan Density 10 Armor Coverage 150 Evasion (%) 40 Targeting Accuracy 6 Recoil Reduction 2 Item Schematics ----------------- None Robot Schematics ------------------ None Fabricated ------------ Nothing Alien Tech Used ----------------- None Achievements -------------- None Challenges ------------ None Game ------ Seed ServoIntegratedBoomstick Manual? 0 Play Time 00:17:09 Cumulative 4.0 hours Start 2024.04.02 @ 11:40:15 End 2024.04.02 @ 11:56:10 Sessions 1 Manual Loads 0 Difficulty Rogue Special Mode None Game No. 9 Rogue 9 Adventurer 0 Explorer 0 Win Type - Total 0 Types 0/0/0/0/0/0/0/0/0 Lore% 8 Gallery% 9 Achievement% 8 Wizard Run 0 Options --------- Layout 1 ASCII 0 Keyboard 0 Movement Arrows Keybinds 0 Fullscreen 1 Font 24/Smallcaps Map View 50x35 Zoom Use 0% Tactical HUD 0 Map Filters NONE Filters NONE Steam 1 RUN: 86bfd218-8243-47c1-862b-64368338bbd7